bitfinex/quotes_ETHUSD_20230109
["timestamp","ask_amount","ask_price","bid_price","bid_amount"]
[1673304619969,34.68853319,1324.2,1324.1,1.11827506]
[1673304621415,34.1196506,1324.2,1324.1,1.11827506]
[1673304622096,38.08341724,1324.2,1324.1,1.11827506]
[1673304622305,42.08136086,1324.2,1324.1,1.11827506]
[1673304622677,38.08341724,1324.2,1324.1,1.11827506]
[1673304623234,42.08136086,1324.2,1324.1,1.11827506]
[1673304625648,38.08341724,1324.2,1324.1,1.11827506]
[1673304626276,42.08136086,1324.2,1324.1,1.11827506]
[1673304626932,38.08341724,1324.2,1324.1,1.11827506]
[1673304645109,38.08341724,1324.2,1324.1,1.1161636]
[1673304646495,42.08136086,1324.2,1324.1,1.1161636]
[1673304646671,34.1196506,1324.2,1324.1,1.1161636]
[1673304650567,38.0848004,1324.2,1324.1,1.1161636]
[1673304653008,38.80604262,1324.2,1324.1,1.1161636]
[1673304653228,34.1196506,1324.2,1324.1,1.1161636]
[1673304653532,38.80604262,1324.2,1324.1,1.1161636]
[1673304653708,34.1196506,1324.2,1324.1,1.1161636]
[1673304654125,38.80604262,1324.2,1324.1,1.1161636]
[1673304654373,34.1196506,1324.2,1324.1,1.1161636]
[1673304662075,38.08405457,1324.2,1324.1,1.1161636]
[1673304662694,34.1196506,1324.2,1324.1,1.1161636]
[1673304664696,38.08396947,1324.2,1324.1,1.1161636]
[1673304665017,38.80604262,1324.2,1324.1,1.1161636]
[1673304665903,34.1196506,1324.2,1324.1,1.1161636]
[1673304667623,34.1196506,1324.2,1324.1,1.11219822]
[1673304668213,34.1196506,1324.2,1324.1,1.09782781]
[1673304670499,38.08364289,1324.2,1324.1,1.09782781]
[1673304673355,34.1196506,1324.2,1324.1,1.09782781]
[1673304673584,38.08371347,1324.2,1324.1,1.09782781]
[1673304673719,34.1196506,1324.2,1324.1,1.09782781]
[1673304674615,38.0837647,1324.2,1324.1,1.09782781]
[1673304676089,34.1196506,1324.2,1324.1,1.09782781]
[1673304676298,38.08387039,1324.2,1324.1,1.09782781]
[1673304676517,34.1196506,1324.2,1324.1,1.09782781]
[1673304678072,34.1196506,1324.2,1323.9,7.9605]
[1673304678314,3.39808071,1324.0,1323.9,7.9605]
[1673304678540,29.85435135,1324.0,1323.9,0.066]
[1673304678713,29.92035135,1324.0,1323.8,10.4457]
[1673304678921,2.83190669,1323.9,1323.8,10.4457]
[1673304679136,25.49222669,1323.9,1323.8,10.4457]
[1673304679471,25.55822669,1323.9,1323.8,10.4457]
[1673304679644,25.55822669,1323.9,1323.8,0.066]
[1673304680012,25.55822669,1323.9,1323.6,14.3574]
[1673304680168,1.69915073,1323.7,1323.6,18.92138112]
[1673304680383,1.69915586,1323.7,1323.6,8.19688112]
[1673304680639,24.99425447,1323.8,1323.6,8.19688112]
[1673304681013,1.6992836,1323.7,1323.6,8.19688112]
[1673304681223,1.69927787,1323.7,1323.6,8.19688112]
[1673304681447,1.69927766,1323.7,1323.6,8.19688112]
[1673304681759,17.43985447,1323.8,1323.6,8.19688112]
[1673304681988,1.69927573,1323.7,1323.6,8.19688112]
[1673304682325,1.69926281,1323.7,1323.6,8.19688112]
[1673304682633,1.69928807,1323.7,1323.6,8.19688112]
[1673304682849,3.96482254,1323.7,1323.6,3.6329]
[1673304683061,3.96482254,1323.7,1323.6,3.5669]
[1673304683435,11.51940254,1323.7,1323.6,3.5669]
[1673304683642,11.58540254,1323.7,1323.6,3.5669]
[1673304684113,9.31986807,1323.7,1323.6,3.5669]
[1673304684268,9.31986807,1323.7,1323.6,5.736971]
[1673304684478,9.31986807,1323.7,1323.6,5.802971]
[1673304684843,1.76528807,1323.7,1323.6,5.802971]
[1673304684998,1.69928807,1323.7,1323.6,5.802971]
[1673304687641,9.25386807,1323.7,1323.6,5.236071]
[1673304687966,9.31986807,1323.7,1323.6,5.236071]
[1673304688438,12.71802116,1323.7,1323.6,5.236071]
[1673304688806,5.16344116,1323.7,1323.6,5.236071]
[1673304689748,2.33153447,1323.7,1323.6,5.236071]
[1673304689965,2.26553447,1323.7,1323.6,5.236071]
[1673304690417,2.26553447,1323.7,1323.6,3.066]
[1673304690589,2.26553447,1323.7,1323.6,3.0]
[1673304690800,33.05022669,1323.7,1323.5,10.5785]
[1673304691060,17.37586044,1323.6,1323.5,10.5785]
[1673304691274,17.44186044,1323.6,1323.5,0.066]
[1673304691425,17.44186044,1323.6,1323.4,0.11511143]
[1673304691640,1.69918047,1323.5,1323.4,0.04911143]
[1673304692319,4.03074091,1323.6,1323.4,0.04558564]
[1673304692509,3.96474091,1323.6,1323.4,0.04558564]
[1673304696054,1.69918047,1323.6,1323.4,0.04558564]
[1673304697941,9.25439047,1323.6,1323.4,0.04558564]
[1673304698199,9.32039047,1323.6,1323.4,0.04558564]
[1673304698407,19.14116091,1323.6,1323.4,0.04558564]
[1673304698573,9.32039047,1323.6,1323.4,0.04558564]
[1673304698793,12.32039047,1323.6,1323.4,0.04558564]
[1673304699000,15.15285091,1323.6,1323.4,0.04558564]
[1673304699264,9.88729047,1323.6,1323.4,0.04558564]
[1673304701220,9.31753088,1323.6,1323.4,0.04558564]
[1673304701448,12.31753088,1323.6,1323.4,0.04558564]
[1673304702087,4.76232088,1323.6,1323.4,0.04558564]
[1673304702292,12.25158088,1323.6,1323.4,0.04558564]
[1673304702508,12.31758088,1323.6,1323.4,0.04558564]
[1673304703231,19.87284088,1323.6,1323.4,0.04558564]
[1673304704807,19.92284088,1323.6,1323.4,0.04558564]
[1673304705057,19.87284088,1323.6,1323.4,0.04558564]
[1673304705690,16.87284088,1323.6,1323.4,0.04558564]
[1673304706511,9.31758088,1323.6,1323.4,0.04558564]
[1673304706840,16.87273088,1323.6,1323.4,0.04558564]
[1673304707220,9.31747088,1323.6,1323.4,0.04558564]
[1673304707463,16.87262088,1323.6,1323.4,0.04558564]
[1673304708367,1.76232088,1323.6,1323.4,22.71440564]
[1673304708588,1.76232088,1323.6,1323.4,26.11959058]
[1673304708589,1.69632088,1323.6,1323.4,26.11959058]
[1673304709052,1.69632088,1323.6,1323.4,18.56330058]
[1673304709748,9.25153088,1323.6,1323.4,0.11158564]
[1673304709961,14.58309132,1323.6,1323.4,0.04558564]
[1673304710307,22.13830132,1323.6,1323.4,0.04558564]
[1673304710539,19.87274088,1323.6,1323.4,0.04558564]
[1673304710841,9.31753088,1323.6,1323.4,0.04558564]
[1673304711215,1.76232088,1323.6,1323.4,7.60176564]
[1673304711464,1.69632088,1323.6,1323.4,7.66776564]
[1673304712171,3.96188132,1323.6,1323.4,7.66776564]
[1673304712381,11.51707132,1323.6,1323.4,7.66776564]
[1673304712612,11.58307132,1323.6,1323.4,7.66776564]
[1673304713463,19.13826132,1323.6,1323.4,0.11158564]
[1673304713672,22.13826132,1323.6,1323.4,0.04558564]
[1673304714044,2.0,1323.5,1323.4,0.04558564]
[1673304715033,12.79142088,1323.6,1323.4,7.60177564]
[1673304715204,12.79142088,1323.6,1323.4,7.66777564]
[1673304715413,9.79142088,1323.6,1323.4,7.66777564]
[1673304715860,8.29142088,1323.6,1323.4,7.66777564]
[1673304716268,8.29142088,1323.6,1323.4,10.25135858]
[1673304716882,10.55698132,1323.6,1323.4,10.25135858]
[1673304717090,10.55698132,1323.6,1323.4,17.80764858]
[1673304717091,8.29142088,1323.6,1323.4,17.80764858]
[1673304717348,8.29142088,1323.6,1323.4,25.36393858]
[1673304721309,8.0951,1323.6,1323.4,25.36393858]
[1673304724090,8.0951,1323.6,1323.4,17.80764858]
[1673304724405,8.0951,1323.6,1323.4,15.22406564]
[1673304724551,8.0951,1323.6,1323.4,0.11158564]
[1673304724759,15.65034,1323.6,1323.4,0.04558564]
[1673304725092,17.3483518,1323.6,1323.4,7.60183564]
[1673304725288,17.3483518,1323.6,1323.4,7.66783564]
[1673304725746,9.7931118,1323.6,1323.4,7.66783564]
[1673304725917,12.05867224,1323.6,1323.4,7.66783564]
[1673304726699,19.61390224,1323.6,1323.4,0.11158564]
[1673304726879,19.61390224,1323.6,1323.4,0.04558564]
[1673304727094,19.61390224,1323.6,1323.4,7.60179564]
[1673304727402,19.61390224,1323.6,1323.4,7.66779564]
[1673304727807,12.05867224,1323.6,1323.4,7.66779564]
[1673304728173,17.91592044,1323.6,1323.4,7.66779564]
[1673304728332,1.69928288,1323.5,1323.4,0.11158564]
[1673304728543,1.69928288,1323.5,1323.4,0.04558564]
[1673304730685,3.96484332,1323.5,1323.4,0.04558564]
[1673304739827,4.01484332,1323.5,1323.4,0.04558564]
[1673304740157,3.96484332,1323.5,1323.4,0.04558564]
[1673304740530,11.52056332,1323.5,1323.4,0.04299802]
[1673304740885,11.58656332,1323.5,1323.4,0.04299802]
[1673304741061,4.03084332,1323.5,1323.4,0.04299802]
[1673304741282,3.96484332,1323.5,1323.4,0.04299802]
[1673304741835,3.96484332,1323.5,1323.4,7.59928802]
[1673304742006,3.96484332,1323.5,1323.4,0.10899802]
[1673304742220,2.26556044,1323.5,1323.4,0.04299802]
[1673304742473,9.82128044,1323.5,1323.4,0.04299802]
[1673304742622,2.33156044,1323.5,1323.4,0.04299802]
[1673304742838,2.26556044,1323.5,1323.4,0.04299802]
[1673304744734,1.6993809,1323.5,1323.4,0.04299802]
[1673304746478,9.2551009,1323.5,1323.4,0.04299802]
[1673304746701,11.58666134,1323.5,1323.4,0.04299802]
[1673304747143,9.88728044,1323.5,1323.4,0.04299802]
[1673304748520,17.44300044,1323.5,1323.4,0.04299802]
[1673304750523,9.88728044,1323.5,1323.4,0.04299802]
[1673304750844,17.44300044,1323.5,1323.4,0.04299802]
[1673304751203,9.88728044,1323.5,1323.4,0.04299802]
[1673304752157,9.93728044,1323.5,1323.4,0.04299802]
[1673304752376,9.88728044,1323.5,1323.4,0.04299802]
[1673304754180,11.58641409,1323.5,1323.4,0.04299802]
[1673304754400,9.88728044,1323.5,1323.4,0.04299802]
[1673304754992,11.5864002,1323.5,1323.4,0.04299802]
[1673304756407,19.1421202,1323.5,1323.4,0.04299802]
[1673304756768,16.87655976,1323.5,1323.4,0.04299802]
[1673304756979,19.1421202,1323.5,1323.4,0.04299802]
[1673304757189,17.44300044,1323.5,1323.4,0.04299802]
[1673304757401,24.99872044,1323.5,1323.4,0.04299802]
[1673304757662,17.44300044,1323.5,1323.4,0.04299802]
[1673304758034,24.99872044,1323.5,1323.4,0.04299802]
[1673304759846,17.44300044,1323.5,1323.4,0.04299802]
[1673304760794,20.27490713,1323.5,1323.4,0.04299802]
[1673304760987,17.44300044,1323.5,1323.4,0.04299802]
[1673304761198,9.88728044,1323.5,1323.4,0.04299802]
[1673304761549,12.38728044,1323.5,1323.4,0.04045206]
[1673304761867,17.44300044,1323.5,1323.4,0.04045206]
[1673304763645,24.99872044,1323.5,1323.4,0.04045206]
[1673304765596,17.44300044,1323.5,1323.4,0.04045206]
[1673304768660,25.04872044,1323.5,1323.4,0.04045206]
[1673304769023,24.99872044,1323.5,1323.4,0.04045206]
[1673304770448,27.83062713,1323.5,1323.4,0.04045206]
[1673304773711,20.27490713,1323.5,1323.4,0.04045206]
[1673304774501,27.83062713,1323.5,1323.4,0.04045206]
[1673304775459,25.56506669,1323.5,1323.4,0.04045206]
[1673304782586,26.13196669,1323.5,1323.4,0.04045206]
[1673304783159,25.56506669,1323.5,1323.4,0.04045206]
[1673304786194,25.56506669,1323.5,1323.4,0.03736775]
[1673304797891,29.36272733,1323.5,1323.4,0.03736775]
[1673304800301,2.89790669,1323.5,1323.4,0.03736775]
[1673304800515,5.09825877,1323.5,1323.4,0.03736775]
[1673304800673,5.16425877,1323.5,1323.4,0.03736775]
[1673304801179,12.71997877,1323.5,1323.4,0.03736775]
[1673304802370,25.56506669,1323.5,1323.4,0.03736775]
[1673304803655,27.83146785,1323.5,1323.4,0.03736775]
[1673304807461,27.83146785,1323.5,1323.4,0.03499503]
[1673304807666,25.56506669,1323.5,1323.4,0.03499503]
[1673304807837,27.83163697,1323.5,1323.4,0.03499503]
[1673304809448,25.56506669,1323.5,1323.4,0.03499503]
[1673304812806,27.83188208,1323.5,1323.4,0.03499503]
[1673304814600,20.27616208,1323.5,1323.4,0.03499503]
[1673304815703,27.83188208,1323.5,1323.4,0.03499503]
[1673304815914,20.27616208,1323.5,1323.4,0.03499503]
[1673304816123,27.83188208,1323.5,1323.4,0.03499503]
[1673304817098,20.27616208,1323.5,1323.4,0.03499503]
[1673304817514,27.83188208,1323.5,1323.4,0.03499503]
[1673304817732,27.83192201,1323.5,1323.4,0.03499503]
[1673304817923,18.00934669,1323.5,1323.4,0.03499503]
[1673304822774,25.56506669,1323.5,1323.4,0.03499503]
[1673304824348,22.73316,1323.5,1323.4,0.03499503]
[1673304825084,15.17744,1323.5,1323.4,0.03499503]
[1673304825625,22.73316,1323.5,1323.4,0.03499503]
[1673304826057,25.56662237,1323.5,1323.4,0.03499503]
[1673304827309,22.73316,1323.5,1323.4,0.03499503]
[1673304828691,29.92890135,1323.5,1323.4,0.03499503]
[1673304829344,26.53082064,1323.5,1323.4,0.03499503]
[1673304830128,29.92890135,1323.5,1323.4,0.03253593]
[1673304832562,33.92186769,1323.5,1323.4,0.03253593]
[1673304833703,41.47758769,1323.5,1323.4,0.03253593]
[1673304833960,42.04393447,1323.5,1323.4,5.93e-06]
[1673304834286,2.5,1323.4,1322.9,18.55614951]
[1673304834496,1.69919263,1323.1,1322.9,18.55614951]
[1673304834652,7.55857,1323.0,1322.9,0.13024951]
[1673304834995,7.62457,1323.0,1322.9,0.06424951]
[1673304836166,22.74171,1323.0,1322.9,0.06424951]
[1673304837642,26.53937064,1323.0,1322.9,0.06424951]
[1673304839693,7.9712,1323.1,1323.0,1.05942887]
[1673304839945,16.16251,1323.1,1323.0,1.05942887]
[1673304840266,15.5952,1323.1,1323.0,1.05942887]
[1673304840432,22.74,1323.1,1323.0,1.05942887]
[1673304842670,31.99719263,1323.1,1323.0,1.05942887]
[1673304842843,30.298,1323.1,1323.0,1.05942887]
[1673304843738,31.99719263,1323.1,1323.0,1.05942887]
[1673304844108,30.298,1323.1,1323.0,1.05942887]
[1673304844362,31.99719263,1323.1,1323.0,1.05942887]
[1673304845052,30.298,1323.1,1323.0,1.05942887]
[1673304845288,31.99719263,1323.1,1323.0,1.05942887]
[1673304845501,30.298,1323.1,1323.0,1.05942887]
[1673304846030,31.99719263,1323.1,1323.0,1.05942887]
[1673304847617,30.298,1323.1,1323.0,1.05942887]
[1673304848859,34.09566064,1323.1,1323.0,1.05942887]
[1673304849070,38.05604925,1323.1,1323.0,1.05942887]
[1673304849288,38.62314925,1323.1,1323.0,1.05942887]
[1673304851591,36.35755907,1323.1,1323.0,1.05942887]
[1673304853858,38.62314925,1323.1,1323.0,1.05942887]
[1673304854180,2.5,1323.0,1322.7,0.13295718]
[1673304854332,2.5,1323.0,1322.7,0.06695718]
[1673304854333,39.71186356,1322.9,1322.7,0.06695718]
[1673304854538,26.47682064,1322.8,1322.7,0.06695718]
[1673304854745,26.54282064,1322.8,1322.7,0.06695718]
[1673304858154,30.52643974,1322.8,1322.7,0.06695718]
[1673304858381,26.54282064,1322.8,1322.7,0.06695718]
[1673304859008,34.10254064,1322.8,1322.7,0.06695718]
[1673304859169,40.34734356,1322.8,1322.7,7.18e-06]
[1673304859378,36.36372446,1322.8,1322.7,7.18e-06]
[1673304859588,40.34734356,1322.8,1322.7,7.18e-06]
[1673304859802,38.65335974,1322.8,1322.7,7.18e-06]
[1673304860009,36.36372446,1322.8,1322.7,7.18e-06]
[1673304860352,35.79652446,1322.8,1322.7,7.18e-06]
[1673304860740,34.10254064,1322.8,1322.7,7.18e-06]
[1673304860955,39.78014356,1322.8,1322.7,7.18e-06]
[1673304861166,40.34734356,1322.8,1322.7,7.18e-06]
[1673304861487,27.11002064,1322.8,1322.7,7.18e-06]
[1673304862667,34.66974064,1322.8,1322.7,7.18e-06]
[1673304866621,38.65335974,1322.8,1322.7,7.18e-06]
[1673304866833,40.34734356,1322.8,1322.7,7.18e-06]
[1673304867563,38.65335974,1322.8,1322.7,7.18e-06]
[1673304868940,34.66974064,1322.8,1322.7,7.18e-06]
[1673304869160,36.36372446,1322.8,1322.7,7.18e-06]
[1673304872407,38.62236956,1322.8,1322.7,7.18e-06]
[1673304872744,42.60598866,1322.8,1322.7,7.18e-06]
[1673304873812,38.62236956,1322.8,1322.7,7.18e-06]
[1673304875801,42.60598866,1322.8,1322.7,7.18e-06]
[1673304876956,38.62236956,1322.8,1322.7,7.18e-06]
[1673304878914,36.92838574,1322.8,1322.7,7.18e-06]
[1673304882391,0.0027254,1322.7,1322.4,0.0720684]
[1673304882602,22.68258,1322.6,1322.4,0.0720684]
[1673304882852,22.74858,1322.6,1322.4,0.0720684]
[1673304884807,0.066,1322.6,1322.4,0.0720684]
[1673304885024,15.12187,1322.6,1322.4,0.0720684]
[1673304885258,7.62697,1322.6,1322.4,7.6338984]
[1673304885478,7.62697,1322.6,1322.4,2.49796969]
[1673304885650,7.62697,1322.6,1322.4,2.43196969]
[1673304886438,7.62697,1322.6,1322.4,9.99384969]
[1673304886656,7.62697,1322.6,1322.4,10.05984969]
[1673304887328,7.62697,1322.6,1322.4,2.49796969]
[1673304887539,22.7488,1322.6,1322.4,2.43196969]
[1673304887791,23.8804231,1322.6,1322.4,2.43196969]
[1673304888259,0.066,1322.6,1322.4,9.99383969]
[1673304888400,10.44411974,1322.7,1322.6,1.05976438]
[1673304888616,10.45611974,1322.7,1322.6,1.05976438]
[1673304888962,18.01656974,1322.7,1322.6,1.05976438]
[1673304889554,1.76405664,1322.7,1322.6,1.05976438]
[1673304889805,2.83002323,1322.7,1322.6,1.05976438]
[1673304890172,10.39031323,1322.7,1322.6,1.05976438]
[1673304890383,10.45631323,1322.7,1322.6,1.05976438]
[1673304890856,9.32434664,1322.7,1322.6,1.05976438]
[1673304891380,16.88463664,1322.7,1322.6,1.05976438]
[1673304891542,19.14328174,1322.7,1322.6,1.05976438]
[1673304891747,19.14328174,1322.7,1322.6,23.84832082]
[1673304891748,2.89654323,1322.7,1322.6,23.84832082]
[1673304892009,2.89654323,1322.7,1322.6,8.79260082]
[1673304892010,1.13521199,1322.7,1322.6,8.79260082]
[1673304894421,1.13521199,1322.7,1322.6,16.35346082]
[1673304894850,1.13521199,1322.7,1322.6,8.79260082]
[1673304897547,1.13521199,1322.7,1322.6,1.23174082]
[1673304897895,8.69550199,1322.7,1322.6,1.16574082]
[1673304898201,16.32179199,1322.7,1322.6,1.16574082]
[1673304898420,18.01712323,1322.7,1322.6,1.16574082]
[1673304899379,10.45683323,1322.7,1322.6,1.16574082]
[1673304901423,10.45683323,1322.7,1322.6,1.05976438]
[1673304902099,2.89654323,1322.7,1322.6,1.05976438]
[1673304902272,10.39083323,1322.7,1322.6,1.05976438]
[1673304902482,10.45683323,1322.7,1322.6,1.05976438]
[1673304902900,9.32434664,1322.7,1322.6,1.05976438]
[1673304903517,16.88463664,1322.7,1322.6,1.05976438]
[1673304904044,34.26386174,1322.7,1322.6,1.05976438]
[1673304904778,32.5685305,1322.7,1322.6,1.05976438]
[1673304906356,35.39183687,1322.7,1322.6,1.05976438]
[1673304907211,27.83154687,1322.7,1322.6,1.05976438]
[1673304907633,20.27125687,1322.7,1322.6,1.05976438]
[1673304907841,12.71096687,1322.7,1322.6,1.05976438]
[1673304908456,20.27125687,1322.7,1322.6,1.05976438]
[1673304908773,19.14713071,1322.7,1322.6,1.05976438]
[1673304909932,26.70742071,1322.7,1322.6,1.05976438]
[1673304910143,26.70748239,1322.7,1322.6,1.05976438]
[1673304910976,25.0082405,1322.7,1322.6,1.05976438]
[1673304911227,19.14716926,1322.7,1322.6,1.05976438]
[1673304912055,26.70745926,1322.7,1322.6,1.05976438]
[1673304912297,25.0082405,1322.7,1322.6,1.05976438]
[1673304912523,19.1472379,1322.7,1322.6,1.05640832]
[1673304913193,17.4479505,1322.7,1322.6,1.05640832]
[1673304915017,19.1473376,1322.7,1322.6,1.05640832]
[1673304915182,17.4479505,1322.7,1322.6,1.05640832]
[1673304915655,17.44406031,1322.7,1322.6,1.05640832]
[1673304916383,9.88377031,1322.7,1322.6,1.05640832]
[1673304916564,2.3246451,1322.7,1322.6,1.05640832]
[1673304916776,2.2586451,1322.7,1322.6,1.05640832]
[1673304917181,11.51839649,1322.7,1322.6,1.05640832]
[1673304917389,2.89841093,1322.7,1322.6,16.17812832]
[1673304917596,1.13294954,1322.7,1322.6,10.30768115]
[1673304917850,1.13294954,1322.7,1322.6,17.86854115]
[1673304919302,1.13294954,1322.7,1322.6,10.30768115]
[1673304919831,1.13294954,1322.7,1322.6,17.86854115]
[1673304920555,10.39270093,1322.7,1322.6,1.12240832]
[1673304920873,19.14468649,1322.7,1322.6,1.05640832]
[1673304921121,24.44633139,1322.7,1322.6,1.05640832]
[1673304921670,29.36783701,1322.7,1322.6,8.32e-06]
[1673304921839,27.11183064,1322.7,1322.6,8.32e-06]
[1673304922027,29.94471367,1322.7,1322.6,8.32e-06]
[1673304924774,27.11183064,1322.7,1322.6,8.32e-06]
[1673304925315,29.94391019,1322.7,1322.6,8.32e-06]
[1673304927123,38.0705059,1322.7,1322.6,8.32e-06]
[1673304927436,37.5032059,1322.7,1322.6,8.32e-06]
[1673304928324,34.10482064,1322.7,1322.6,8.32e-06]
[1673304931637,40.5032059,1322.7,1322.6,8.32e-06]
[1673304931805,49.5990059,1322.7,1322.6,8.32e-06]
[1673304932686,54.13933649,1322.7,1322.6,8.32e-06]
[1673304932866,54.89569367,1322.7,1322.6,0.21827344]
[1673304933545,62.85769367,1322.7,1322.6,3.44e-06]
[1673304933689,2.5,1322.6,1322.4,0.0720684]
[1673304933901,37.44014845,1322.5,1322.4,0.0720684]
[1673304934123,41.26250563,1322.5,1322.4,0.0720684]
[1673304935382,41.26114268,1322.5,1322.4,0.0720684]
[1673304938118,43.52295865,1322.5,1322.4,0.0720684]
[1673304938330,43.52296046,1322.5,1322.4,0.0720684]
[1673304938565,41.26114268,1322.5,1322.4,0.0720684]
[1673304938773,52.79686104,1322.5,1322.4,0.0720684]
[1673304939189,57.54717268,1322.5,1322.4,0.0720684]
[1673304940112,54.71906782,1322.5,1322.4,0.0720684]
[1673304940561,57.54582431,1322.5,1322.4,0.0720684]
[1673304941210,49.98439431,1322.5,1322.4,0.0720684]
[1673304942796,53.95868267,1322.5,1322.4,0.0720684]
[1673304946056,61.92068267,1322.5,1322.4,8.4e-06]
[1673304948999,61.91858624,1322.5,1322.4,8.4e-06]
[1673304952046,62.48928756,1322.5,1322.4,8.4e-06]
[1673304952870,10.462,1322.4,1322.2,0.10181529]
[1673304953053,8.88187101,1322.3,1322.1,0.7219618]
[1673304953413,35.74501486,1322.2,1322.1,0.7219618]
[1673304953566,35.81101486,1322.2,1322.1,0.7219618]
[1673304953776,36.56737204,1322.2,1322.1,0.7219618]
[1673304953983,38.82702109,1322.2,1322.1,0.7219618]
[1673304955881,41.10655523,1322.2,1322.1,0.7219618]
[1673304956141,49.06855523,1322.2,1322.1,0.7219618]
[1673304956361,46.7884298,1322.2,1322.0,0.09766454]
[1673304956513,31.81245509,1322.1,1322.0,0.09766454]
[1673304956726,31.87845509,1322.1,1322.0,0.09766454]
[1673304957395,30.74898357,1322.1,1322.0,0.09766454]
[1673304957613,33.00863262,1322.1,1322.0,0.09766454]
[1673304957836,30.25944,1321.9,1321.8,7.85903289]
[1673304957979,34.12310064,1321.9,1321.8,0.066]
[1673304958188,11.42852064,1321.9,1321.7,11.05580037]
[1673304958404,22.69632,1321.8,1321.7,11.05580037]
[1673304958722,22.76232,1321.8,1321.7,0.73350037]
[1673304958927,22.76232,1321.8,1321.7,0.66750037]
[1673304960236,30.32776,1321.8,1321.7,0.66750037]
[1673304960449,30.32776,1321.8,1321.7,0.09980037]
[1673304961284,22.76232,1321.8,1321.7,0.09980037]
[1673304963447,31.45715309,1321.8,1321.7,0.09980037]
[1673304963657,35.25481373,1321.8,1321.7,0.09980037]
[1673304964130,36.94897666,1321.8,1321.7,0.09980037]
[1673304965443,35.25481373,1321.8,1321.7,0.09980037]
[1673304966494,36.94897666,1321.8,1321.7,0.09980037]
[1673304966864,36.57594075,1321.8,1321.7,0.09980037]
[1673304967466,37.70473401,1321.8,1321.7,0.09980037]
[1673304968830,48.49960885,1321.8,1321.7,3.7e-07]
[1673304969043,45.66675072,1321.8,1321.7,3.7e-07]
[1673304969406,36.01053482,1321.8,1321.7,3.7e-07]
[1673304970685,35.25417764,1321.8,1321.7,3.7e-07]
[1673304971292,34.12542064,1321.8,1321.7,3.7e-07]
[1673304971501,35.25417764,1321.8,1321.7,3.7e-07]
[1673304972638,34.12542064,1321.8,1321.7,3.7e-07]
[1673304973072,35.25417764,1321.8,1321.7,3.7e-07]
[1673304974248,34.12542064,1321.8,1321.7,3.7e-07]
[1673304978368,35.25417764,1321.8,1321.7,3.7e-07]
[1673304982370,36.01053482,1321.8,1321.7,3.7e-07]
[1673304983623,49.62836585,1321.8,1321.7,3.7e-07]
[1673304983841,49.86269497,1321.8,1321.7,3.7e-07]
[1673304984000,52.63269497,1321.8,1321.7,3.7e-07]
[1673304984360,55.45725629,1321.8,1321.7,3.7e-07]
[1673304984785,53.19760724,1321.8,1321.7,3.7e-07]
[1673304984957,53.19760724,1321.8,1321.6,7.4e-07]
[1673304985306,26.87262661,1321.7,1321.6,7.4e-07]
[1673304985521,52.54015874,1321.7,1321.4,0.81965144]
[1673304985739,52.54015874,1321.7,1321.3,0.05297733]
[1673304985740,13.45471358,1321.5,1321.3,0.05297733]
[1673304986097,37.69797492,1321.4,1321.3,0.05297733]
[1673304986268,50.43144288,1321.4,1321.3,0.05297733]
[1673304986479,56.16448504,1321.4,1321.3,0.05297733]
[1673304987321,55.03509076,1321.4,1321.3,0.05297733]
[1673304987523,56.16418853,1321.4,1321.3,0.05297733]
[1673304987741,54.46913559,1321.4,1321.3,0.05297733]
[1673304987896,56.16418853,1321.4,1321.3,0.05297733]
[1673304990101,54.46913559,1321.4,1321.3,0.05297733]
[1673304990834,56.16418853,1321.4,1321.3,0.05297733]
[1673304991044,59.16418853,1321.4,1321.3,0.05297733]
[1673304991466,59.16431641,1321.4,1321.3,0.05297733]
[1673304992310,63.11342719,1321.4,1321.3,0.05297733]
[1673304992625,63.11423684,1321.4,1321.0,0.13456994]
[1673304992830,2.5,1321.1,1320.9,0.066]
[1673304993040,3.79766064,1321.0,1320.8,11.8612618]
[1673304993299,34.08002064,1320.9,1320.8,0.7879618]
[1673304993507,34.08002064,1320.9,1320.8,0.7219618]
[1673304993508,34.14602064,1320.9,1320.8,0.7219618]
[1673304995934,34.90237782,1320.9,1320.8,0.7219618]
[1673304997076,27.33178782,1320.9,1320.8,0.7219618]
[1673304998137,19.76119782,1320.9,1320.8,0.7219618]
[1673304998721,27.33178782,1320.9,1320.8,0.7219618]
[1673304999397,19.76119782,1320.9,1320.8,0.7219618]
[1673305000295,27.33178782,1320.9,1320.8,0.7219618]
[1673305002843,26.57543064,1320.9,1320.8,0.7219618]
[1673305005582,34.14602064,1320.9,1320.8,0.7219618]
[1673305006239,34.71402064,1320.9,1320.8,0.7219618]
[1673305007303,22.68847957,1320.9,1320.8,0.7219618]
[1673305007619,22.12047957,1320.9,1320.8,0.7219618]
[1673305008147,25.12047957,1320.9,1320.8,0.7219618]
[1673305008460,32.69106957,1320.9,1320.8,0.7219618]
[1673305008670,25.12047957,1320.9,1320.8,0.7219618]
[1673305009042,40.65306957,1320.9,1320.8,0.7219618]
[1673305009254,37.82847991,1320.9,1320.8,0.7219618]
[1673305009475,33.83883675,1320.9,1320.8,0.7219618]
[1673305010831,33.83883675,1320.9,1320.8,0.98579921]
[1673305011880,41.40942675,1320.9,1320.8,0.98579921]
[1673305015589,48.22254358,1320.9,1320.8,9.21e-06]
[1673305016418,56.97704358,1320.9,1320.8,9.21e-06]
[1673305016962,56.97704358,1320.9,1320.6,0.1492982]
[1673305016963,57.54504358,1320.9,1320.6,0.1492982]
[1673305017289,30.28696,1320.7,1320.6,0.1492982]
[1673305017469,37.15062064,1320.7,1320.6,0.1492982]
[1673305023175,0.066,1320.7,1320.6,1.5492982]
[1673305023331,15.14269,1320.8,1320.6,1.5492982]
[1673305023693,12.56431011,1320.8,1320.6,1.71082802]
[1673305023911,3.86366064,1320.8,1320.6,1.71082802]
[1673305024085,3.79766064,1320.8,1320.6,1.71082802]
[1673305024317,11.64397367,1320.9,1320.6,1.71082802]
[1673305024642,1.12938947,1321.1,1320.9,1.12720549]
[1673305024830,2.88947367,1321.2,1321.0,7.57002]
[1673305025024,2.82347367,1321.2,1321.0,0.066]
[1673305025239,1.12938947,1321.2,1321.0,15.13977]
[1673305025444,1.12938947,1321.3,1321.0,19.18271632]
[1673305025653,1.81305736,1321.4,1321.2,2.5]
[1673305025869,1.74705736,1321.4,1321.2,1.006934]
[1673305027159,1.74705736,1321.4,1321.2,1.01784918]
[1673305027585,0.05297316,1321.4,1321.2,1.01784918]
[1673305027950,0.05297316,1321.4,1321.2,16.15543918]
[1673305028211,0.05297316,1321.4,1321.2,16.22143918]
[1673305028583,0.05297316,1321.4,1321.2,18.72143918]
[1673305028791,0.05297316,1321.4,1321.2,26.29030918]
[1673305029348,0.05297316,1321.4,1321.2,23.79030918]
[1673305031945,0.05297316,1321.4,1321.2,27.75868612]
[1673305032158,0.05297316,1321.4,1321.3,3.2979]
[1673305032414,1e-08,1321.4,1321.3,33.07683555]
[1673305032583,0.04986572,1321.6,1321.3,33.14283555]
[1673305034016,0.04986572,1321.6,1321.4,7.76603758]
[1673305034319,32.1000842,1321.9,1321.6,2.5]
[1673305034320,30.406,1321.9,1321.6,2.5]
[1673305034481,0.066,1321.9,1321.7,15.13202]